bitfinex-derivatives/quotes_ETHF0:USTF0_20250502
["timestamp","ask_amount","ask_price","bid_price","bid_amount"]
[1746192782708,4.78304,1839.2,1839.1,8.9778]
[1746192782909,3.696,1839.2,1839.1,8.9778]
[1746192783112,1.08703,1839.3,1839.2,1.08704]
[1746192783314,1.08703,1839.3,1839.2,11.18054]
[1746192783910,1.08703,1839.3,1839.2,10.0935]
[1746192784408,1.08703,1839.3,1839.2,11.18054]
[1746192784609,1.08698,1839.3,1839.2,11.1805]
[1746192786713,1.08698,1839.3,1839.2,11.18054]
[1746192786914,1.08698,1839.3,1839.2,10.0935]
[1746192787215,1.08698,1839.3,1839.2,11.18054]
[1746192787810,2.74707,1839.4,1839.3,1.08698]
[1746192788020,1.08697,1839.4,1839.3,10.77]
[1746192788219,4.78297,1839.4,1839.3,11.85698]
[1746192788417,4.78297,1839.4,1839.3,10.77]
[1746192790115,1.08704,1839.2,1839.1,3.2078]
[1746192790320,1.08704,1839.2,1839.1,13.4478]
[1746192790712,1.08704,1839.2,1839.1,20.78]
[1746192790919,2.84144,1839.2,1839.1,20.78]
[1746192791119,6.53744,1839.2,1839.1,20.78]
[1746192793216,5.4504,1839.2,1839.1,25.0749]
[1746192793415,3.696,1839.2,1839.1,25.0749]
[1746192793625,3.696,1839.2,1839.1,25.9273]
[1746192794328,1.08694,1839.4,1839.2,1.08699]
[1746192794520,1.08694,1839.4,1839.3,4.941]
[1746192794725,6.67753,1839.6,1839.4,1.0869]
[1746192794920,1.08683,1839.6,1839.5,1.7332]
[1746192795120,4.78283,1839.6,1839.5,5.8732]
[1746192795515,3.696,1839.6,1839.5,10.16787]
[1746192795719,3.59321341,1839.8,1839.5,17.951]
[1746192795921,4.67993341,1839.8,1839.7,3.2078]
[1746192796123,4.67993341,1839.8,1839.7,3.39]
[1746192796322,6.30053341,1839.8,1839.7,3.39]
[1746192797218,9.99653341,1839.8,1839.7,3.39]
[1746192797922,8.90981341,1839.8,1839.6,4.2946]
[1746192798113,5.21381341,1839.8,1839.7,1.59]
[1746192798426,5.21381341,1839.8,1839.7,16.08]
[1746192798623,6.30050341,1839.8,1839.7,16.08]
[1746192799317,4.67990341,1839.8,1839.7,17.16675]
[1746192799524,4.67990341,1839.8,1839.7,16.08]
[1746192799925,1.08669,1839.8,1839.7,16.08]
[1746192800827,1.08669,1839.8,1839.7,14.49]
[1746192801222,4.78269,1839.8,1839.7,14.49]
[1746192801726,4.78269,1839.8,1839.7,16.0891]
[1746192802032,4.78269,1839.8,1839.7,17.17585]
[1746192802225,1.08669,1839.8,1839.7,17.17585]
[1746192803431,1.08669,1839.8,1839.7,16.0891]
[1746192803726,1.08669,1839.8,1839.7,16.9887]
[1746192804127,4.78269,1839.8,1839.7,18.07545]
[1746192804327,4.78269,1839.8,1839.7,16.9887]
[1746192804528,4.78269,1839.8,1839.7,18.07545]
[1746192804923,4.78269,1839.8,1839.7,16.9887]
[1746192805123,1.08669,1839.8,1839.7,15.57675]
[1746192805329,1.08669,1839.8,1839.7,17.29985]
[1746192806121,1.08669,1839.8,1839.7,16.2131]
[1746192806628,3.869,1840.0,1839.9,1.08663]
[1746192806825,1.08657,1840.0,1839.9,8.0478]
[1746192807135,4.78257,1840.0,1839.9,8.0478]
[1746192807629,4.78257,1840.0,1839.9,4.84]
[1746192807930,4.78257,1840.0,1839.9,7.64973]
[1746192808132,4.78257,1840.0,1839.9,10.85753]
[1746192808323,3.696,1840.0,1839.9,10.85753]
[1746192809118,3.696,1840.0,1839.9,51.65753]
[1746192809328,1.08653,1840.1,1840.0,1.08111326]
[1746192809524,1.08647,1840.2,1840.1,1.0865]
[1746192809728,1.08647,1840.2,1840.1,18.0343]
[1746192810026,1.08647,1840.2,1840.1,13.74]
[1746192810228,6.44427,1840.2,1840.1,13.74]
[1746192811028,6.44425,1840.2,1840.1,13.74]
[1746192811631,1.08657,1840.0,1839.9,2.68233]
[1746192811841,1.08657,1840.0,1839.9,6.48233]
[1746192812135,1.08657,1840.0,1839.9,3.8]
[1746192812428,2.545,1840.2,1839.9,4.88661]
[1746192812635,1.08657,1840.0,1839.9,4.88661]
[1746192813026,1.08657,1840.0,1839.9,3.8]
[1746192813226,4.78257,1840.0,1839.9,3.8]
[1746192814426,4.78257,1840.0,1839.9,4.88663]
[1746192814626,4.78257,1840.0,1839.9,5.411]
[1746192815130,4.78257,1840.0,1839.9,6.49763]
[1746192815327,3.696,1840.0,1839.9,6.49763]
[1746192815529,3.696,1840.0,1839.9,8.31683]
[1746192816227,1.6618,1840.2,1839.9,7.2302]
[1746192816424,1.08657,1840.0,1839.9,3.8]
[1746192817134,4.78257,1840.0,1839.9,4.88663]
[1746192817332,4.78257,1840.0,1839.9,5.4451]
[1746192817931,3.696,1840.0,1839.9,6.53173]
[1746192818132,1.08654,1840.1,1840.0,1.08657]
[1746192818331,1.08654,1840.1,1840.0,10.37947]
[1746192819238,1.08654,1840.1,1840.0,11.26397]
[1746192819440,1.08654,1840.1,1840.0,10.1774]
[1746192819635,1.08654,1840.1,1840.0,4.44]
[1746192820227,6.46794,1840.1,1840.0,4.44]
[1746192820527,7.37064,1840.1,1840.0,4.44]
[1746192822027,11.20864,1840.1,1840.0,4.44]
[1746192822232,16.20864,1840.1,1840.0,4.44]
[1746192823039,1.08681,1839.6,1839.5,7.1621643]
[1746192823341,1.08681,1839.6,1839.5,10.4221643]
[1746192824044,2.72231,1839.6,1839.5,10.4221643]
[1746192824231,6.41831,1839.6,1839.5,10.4221643]
[1746192825033,6.41831,1839.6,1839.5,3.26]
[1746192825236,10.4815,1839.6,1838.8,7.1821643]
[1746192825438,1.08722,1838.9,1838.8,18.8221643]
[1746192826341,4.78322,1838.9,1838.8,18.8221643]
[1746192829431,4.13322,1838.9,1838.8,20.4531643]
[1746192829640,4.13322,1838.9,1838.8,13.291]
[1746192830548,4.13322,1838.9,1838.8,11.66]
[1746192833042,4.13322,1838.9,1838.8,10.11046]
[1746192833251,12.34102,1838.9,1838.8,10.11046]
[1746192833451,13.74102,1838.9,1838.8,10.11046]
[1746192833642,2.71839,1838.7,1838.3,0.9236]
[1746192833951,1.08751,1838.5,1838.3,15.0536]
[1746192834249,1.08751,1838.5,1838.4,1.6508]
[1746192834440,1.08751,1838.5,1838.4,9.5808]
[1746192834641,2.71321,1838.5,1838.4,9.5808]
[1746192835747,2.71321,1838.5,1838.4,7.93]
[1746192837951,1.6257,1838.5,1838.4,7.93]
[1746192838148,5.3217,1838.5,1838.4,10.69622]
[1746192838346,3.696,1838.5,1838.4,10.69622]
[1746192838547,4.78346,1838.5,1838.4,9.6087]
[1746192838749,4.78346,1838.5,1838.4,18.0787]
[1746192839355,6.48746,1838.5,1838.4,18.0787]
[1746192840151,2.79146,1838.5,1838.4,18.0787]
[1746192840851,4.92644,1838.6,1838.4,19.16617]
[1746192841055,4.92644,1838.6,1838.5,1.7011]
[1746192841258,4.92644,1838.6,1838.5,14.4611]
[1746192841453,4.92644,1838.6,1838.5,12.76]
[1746192842154,4.92644,1838.6,1838.5,13.84746]
[1746192842453,4.92644,1838.6,1838.5,12.76]
[1746192842849,4.92644,1838.6,1838.5,14.3891]
[1746192843352,8.62244,1838.6,1838.5,12.76]
[1746192843761,8.62244,1838.6,1838.2,4.1109]
[1746192843762,1.08758,1838.3,1838.2,3.2078]
[1746192844053,1.08758,1838.3,1838.2,8.6878]
[1746192844252,4.89258,1838.3,1838.2,8.6878]
[1746192845355,4.89258,1838.3,1838.2,5.48]
[1746192846252,8.58858,1838.3,1838.2,5.48]
[1746192847144,8.10038,1838.3,1838.2,5.48]
[1746192847348,8.95578,1838.3,1838.2,5.48]
[1746192847655,10.63348,1838.3,1838.2,5.48]
[1746192848051,14.32948,1838.3,1838.2,5.48]
[1746192849548,19.32948,1838.3,1838.2,4.38628]
[1746192849744,19.32948,1838.3,1838.2,3.1729]
[1746192849949,1.08793,1837.7,1837.6,1.6068]
[1746192850151,1.08799,1837.6,1837.5,0.8705]
[1746192850355,1.08799,1837.6,1837.5,20.5973]
[1746192850664,1.08791,1837.8,1837.5,28.8051]
[1746192850954,1.08791,1837.8,1837.6,2.69335]
[1746192851155,1.08791,1837.8,1837.7,1.6054]
[1746192851354,1.08791,1837.8,1837.7,22.1754]
[1746192852263,2.71741,1837.8,1837.7,22.1754]
[1746192853153,2.71741,1837.8,1837.7,20.57]
[1746192854158,9.62121,1837.8,1837.7,20.57]
[1746192855854,9.62121,1837.8,1837.7,19.3612]
[1746192856061,1.08805,1837.5,1837.4,0.8738]
[1746192856257,1.08811,1837.4,1837.3,2.487]
[1746192856464,5.89151,1837.4,1837.3,17.05997025]
[1746192856653,1.08835,1837.0,1836.9,3.2078]
[1746192856854,4.89435,1837.0,1836.9,23.2178]
[1746192857159,4.89435,1837.0,1836.9,20.01]
[1746192857353,8.10215,1837.0,1836.9,20.01]
[1746192857953,13.10215,1837.0,1836.9,16.91431]
[1746192858154,1.08858,1836.6,1836.5,1.7103]
[1746192858352,4.89458,1836.6,1836.5,20.7303]
[1746192858551,4.89458,1836.6,1836.5,19.02]
[1746192858755,8.10238,1836.6,1836.5,19.02]
[1746192859558,4.89458,1836.6,1836.5,19.02]
[1746192860361,4.89458,1836.6,1836.5,20.7577]
[1746192860660,6.58198,1836.6,1836.5,20.7577]
[1746192862468,9.78978,1836.6,1836.5,20.7577]
[1746192863064,9.78978,1836.6,1836.5,19.02]
[1746192863764,15.62778,1836.6,1836.5,17.90816]
[1746192863965,2.72201,1836.3,1835.8,1.8668]
[1746192864165,2.72201,1836.3,1835.8,21.4368]
[1746192864166,1.089,1835.9,1835.8,21.4368]
[1746192865269,1.08896,1836.0,1835.8,26.4368]
[1746192865464,1.08892,1836.1,1835.9,4.29678]
[1746192865767,1.08892,1836.1,1835.9,21.5278]
[1746192865965,1.08894,1836.0,1835.9,21.5278]
[1746192866166,1.08894,1836.0,1835.9,25.2238]
[1746192866369,1.08893,1836.1,1835.9,30.2238]
[1746192866565,1.08894,1836.0,1835.9,25.2238]
[1746192867066,1.08892,1836.1,1835.9,31.3128]
[1746192867373,4.89684,1836.2,1836.0,1.08892]
[1746192867668,3.808,1836.2,1836.1,4.29668]
[1746192867858,3.808,1836.2,1836.1,23.29668]
[1746192868058,1.08877,1836.3,1836.1,23.29668]
[1746192868261,1.08877,1836.3,1836.2,0.9081]
[1746192868459,3.809,1836.5,1836.2,17.0781]
[1746192868666,1.0887,1836.4,1836.3,0.9805]
[1746192868859,1.0887,1836.4,1836.3,10.9605]
[1746192869260,2.7669,1836.4,1836.3,10.9605]
[1746192869465,1.0887,1836.4,1836.3,10.9605]
[1746192869667,2.7669,1836.4,1836.3,10.9605]
[1746192870660,5.9747,1836.4,1836.3,9.98]
[1746192871268,9.6707,1836.4,1836.3,9.98]
[1746192872259,14.6707,1836.4,1836.3,9.98]
[1746192872464,20.5087,1836.4,1836.3,9.98]
[1746192872769,20.5087,1836.4,1836.3,8.24834]
[1746192872963,20.5387,1836.4,1836.3,6.30435]
[1746192873270,1.08894,1836.0,1835.9,0.9014]
[1746192873470,4.86794,1836.0,1835.9,21.5214]
[1746192873771,3.779,1836.0,1835.9,21.5214]
[1746192873971,3.779,1836.0,1835.9,25.8182]
[1746192874170,3.779,1836.3,1836.1,1.08888]
[1746192874364,1.08882,1836.2,1836.1,18.37888]
[1746192874565,4.86781,1836.3,1836.1,18.37888]
[1746192874761,3.779,1836.3,1836.2,1.08882]
[1746192874967,3.779,1836.3,1836.2,5.80882]
[1746192875166,6.92672,1836.4,1836.2,4.72]
[1746192875373,6.92672,1836.4,1836.2,5.80878]
[1746192876065,1.08876,1836.3,1836.2,8.416]
[1746192876266,6.92673,1836.4,1836.2,9.50482]
[1746192876466,6.92673,1836.4,1836.2,8.416]
[1746192876667,1.08876,1836.3,1836.2,8.416]
[1746192877876,5.14876,1836.3,1836.2,8.416]
[1746192878174,14.69436,1836.3,1836.2,4.72]
[1746192878365,9.69436,1836.3,1836.2,4.72]
[1746192878565,10.60216,1836.3,1836.2,4.72]
[1746192878976,11.03289579,1836.3,1836.2,4.72]
[1746192879272,14.72889579,1836.3,1836.2,4.72]
[1746192879471,14.72889579,1836.3,1836.2,3.49352]
[1746192879975,1.08894,1836.0,1835.9,0.9014]
[1746192880177,1.08894,1836.0,1835.9,18.5914]
[1746192880576,1.08894,1836.0,1835.9,20.2754]
[1746192881778,2.73474,1836.0,1835.9,20.2754]
[1746192882971,6.51474,1836.0,1835.9,20.2754]
[1746192884474,5.4258,1836.0,1835.9,20.2754]
[1746192884674,1.08884,1836.2,1836.0,1.08891]
[1746192884873,1.08884,1836.2,1836.1,1.7003]
[1746192885073,1.08884,1836.2,1836.1,11.2003]
[1746192886283,1.08884,1836.2,1836.1,9.5]
[1746192886872,2.80594,1836.2,1836.1,9.5]
[1746192889185,6.50194,1836.2,1836.1,9.5]
[1746192889790,4.78484,1836.2,1836.1,9.5]
[1746192890086,6.40424,1836.2,1836.1,9.5]
[1746192890274,2.70824,1836.2,1836.1,9.5]
[1746192893487,2.70824,1836.2,1836.1,6.77707406]
[1746192894188,6.40424,1836.2,1836.1,5.83867406]
[1746192894379,6.45424,1836.2,1836.1,5.83867406]
[1746192894582,6.40424,1836.2,1836.1,5.83867406]
[1746192894887,6.40424,1836.2,1836.1,5.17807407]
[1746192895190,7.37224,1836.2,1836.1,5.17807407]
[1746192895888,6.40424,1836.2,1836.1,5.17807407]
[1746192896093,2.70824,1836.2,1836.1,5.17807407]
[1746192896300,2.70824,1836.2,1836.1,6.86777407]
[1746192897593,2.70824,1836.2,1836.1,5.17807407]
[1746192898096,2.77824,1836.2,1836.1,5.17807407]
[1746192898291,12.31224,1836.2,1836.1,3.57437407]
[1746192898593,1.08888,1836.1,1836.0,0.00943347]
[1746192898794,10.17408,1836.1,1836.0,0.00943347]
[1746192898994,9.67408,1836.1,1836.0,0.06943347]
[1746192899194,13.37008,1836.1,1836.0,0.06943347]
[1746192899597,14.28528,1836.1,1836.0,0.06943347]
[1746192900496,13.37008,1836.1,1836.0,0.06943347]
[1746192901090,9.67408,1836.1,1836.0,0.06943347]
[1746192901290,8.07768,1836.1,1836.0,0.06943347]
[1746192903900,4.29659,1836.3,1836.1,1.08884]
[1746192904097,1.08879,1836.3,1836.2,2.5815]
[1746192904398,1.08879,1836.3,1836.2,16.6596]
[1746192904797,3.743,1836.4,1836.2,16.6596]
[1746192904996,4.8317,1836.4,1836.3,1.6201]
[1746192905192,4.8317,1836.4,1836.3,4.8901]
[1746192905392,6.5755,1836.4,1836.3,4.8901]
[1746192905592,9.7833,1836.4,1836.3,3.27]
[1746192905992,10.7407,1836.4,1836.3,3.27]
[1746192906201,14.4367,1836.4,1836.3,3.27]
[1746192909001,13.4793,1836.4,1836.3,3.27]
[1746192909701,13.8393,1836.4,1836.3,2.10688]
[1746192910004,1.08888,1836.1,1836.0,0.00943347]
[1746192910299,8.03968,1836.1,1836.0,1.96943347]
[1746192911002,9.72978,1836.1,1836.0,1.96943347]
[1746192911997,9.72978,1836.1,1836.0,3.63283347]
[1746192913096,8.03968,1836.1,1836.0,3.63283347]
[1746192913901,4.83188,1836.1,1836.0,11.84063347]
[1746192914102,4.83188,1836.1,1836.0,15.53663347]
[1746192914302,1.08888,1836.1,1836.0,15.53663347]
[1746192914510,4.7144872,1836.1,1836.0,15.53663347]
[1746192914805,8.4574872,1836.1,1836.0,7.32883347]
[1746192915205,8.4574872,1836.1,1836.0,3.63283347]
[1746192915601,3.6256072,1836.1,1836.0,12.92957347]
[1746192915808,7.11674498,1836.4,1836.1,1.08888]
[1746192916103,7.11674498,1836.4,1836.3,1.08876]
[1746192916301,8.92931245,1836.5,1836.4,1.0887]
[1746192916502,8.92931245,1836.5,1836.4,12.2647]
[1746192916700,8.92931245,1836.5,1836.4,17.2647]
[1746192917100,8.92931245,1836.5,1836.4,20.9607]
[1746192917497,8.92931245,1836.5,1836.4,61.7607]
[1746192918003,7.39001245,1836.5,1836.4,61.7607]
[1746192918206,6.08421245,1836.5,1836.4,61.7607]
[1746192918995,1.08864,1836.5,1836.4,55.672]
[1746192919200,1.08864,1836.5,1836.4,11.6642]
[1746192919804,2.78364,1836.5,1836.4,11.6642]
[1746192920102,2.78364,1836.5,1836.4,6.38]
[1746192920697,12.52144,1836.5,1836.4,5.23217]
[1746192920898,1.08882,1836.2,1836.1,10.79596997]
[1746192921106,13.99962,1836.2,1836.1,2.1221659]
[1746192921303,13.99962,1836.2,1836.1,0.5835659]
[1746192921510,14.5176,1836.2,1835.7,15.47225237]
[1746192921719,1.08906,1835.8,1835.7,11.94130433]
[1746192922005,9.09986,1835.8,1835.7,4.50135008]
[1746192922213,12.0608,1835.8,1835.7,0.09]
[1746192922511,8.03986,1835.8,1835.7,0.09]
[1746192922711,10.64976,1835.8,1835.7,0.09]
[1746192922912,7.44196,1835.8,1835.7,0.09]
[1746192924012,10.64976,1835.8,1835.7,0.09]
[1746192925312,9.64666,1835.8,1835.7,0.09]
[1746192925509,8.5576,1835.8,1835.7,0.09]
[1746192925710,9.64666,1835.8,1835.7,0.09]
[1746192925901,8.5576,1835.8,1835.7,0.09]
[1746192926106,8.03986,1835.8,1835.7,0.09]
[1746192926915,6.9508,1835.8,1835.7,0.09]
[1746192927120,8.03986,1835.8,1835.7,0.09]
[1746192928410,2.72313,1835.5,1834.8,1.0003]
[1746192928611,1.08945,1835.2,1834.8,19.53994]
[1746192928807,1.08939,1835.3,1834.9,1.7333]
[1746192929012,9.5201,1835.4,1835.0,1.08953]
[1746192929212,9.5201,1835.4,1835.1,5.9199]
[1746192929213,3.744,1835.4,1835.1,5.9199]
[1746192929518,3.744,1835.4,1835.2,1.7333]
[1746192929717,3.744,1835.4,1835.2,22.7733]
[1746192929915,4.83331,1835.4,1835.2,22.7733]
[1746192930119,4.83331,1835.4,1835.3,1.6105]
[1746192930317,4.83331,1835.4,1835.3,17.2105]
[1746192930617,4.83329,1835.4,1835.3,17.2105]
[1746192930819,3.744,1835.4,1835.3,17.2105]
[1746192931212,3.744,1835.4,1835.3,25.9065]
[1746192931413,3.744,1835.4,1835.3,30.20365]
[1746192931707,1.08929,1835.4,1835.3,24.1143]
[1746192931914,1.08929,1835.4,1835.3,29.1143]
[1746192932115,1.08929,1835.4,1835.3,24.1143]
[1746192932917,1.6682,1835.5,1835.3,24.1143]
[1746192933127,1.6682,1835.5,1835.4,1.5814]
[1746192933423,1.08916,1835.7,1835.4,10.7114]
[1746192933621,1.08918,1835.6,1835.4,11.80067]
[1746192933821,6.9688,1835.8,1835.5,2.67061]
[1746192934114,8.05789,1835.8,1835.6,2.67052]
[1746192934315,6.48319,1836.2,1835.7,4.7892]
[1746192934515,3.761,1836.2,1835.8,1.5814]
[1746192934715,3.761,1836.2,1835.8,7.7314]
[1746192934920,1.089,1835.9,1835.8,7.7314]
[1746192935117,1.089,1835.9,1835.8,9.846]
[1746192935422,13.0578,1835.9,1835.8,8.60915]
[1746192935723,8.8878,1835.9,1835.8,3.866]
[1746192935924,8.0578,1835.9,1835.8,3.866]
[1746192936117,9.6642,1835.9,1835.8,0.17]
[1746192938421,1.0895,1835.1,1834.8,4.29742]
[1746192938612,3.761,1835.4,1835.1,1.08945]
[1746192938923,1.08941,1835.2,1835.1,17.73]
[1746192939718,2.78569,1835.3,1835.1,17.73]
[1746192939913,1.08941,1835.2,1835.1,17.73]
[1746192940629,2.78571,1835.2,1835.1,17.73]
[1746192941126,7.78571,1835.2,1835.1,17.73]
[1746192941434,1.08973,1834.7,1834.4,1.08985]
[1746192941726,1.08973,1834.7,1834.4,11.38985]
[1746192942123,1.0898,1834.6,1834.4,13.996]
[1746192942323,2.8449,1834.6,1834.4,21.596]
[1746192942718,7.8996,1834.9,1834.4,21.596]
[1746192942915,7.8996,1834.9,1834.4,22.68583]
[1746192942916,1.08972,1834.7,1834.4,22.68583]
[1746192943120,1.7551,1834.8,1834.4,21.596]
[1746192943319,1.08975,1834.7,1834.4,22.68586]
[1746192943515,1.7551,1834.8,1834.4,21.596]
[1746192943516,1.08979,1834.6,1834.4,21.596]
[1746192943920,1.08975,1834.7,1834.4,21.596]
[1746192944231,1.08978,1834.6,1834.4,21.596]
[1746192944430,1.08983,1834.5,1834.4,21.596]
[1746192945131,1.09013,1834.0,1833.9,0.02]
[1746192945426,8.05993,1834.0,1833.9,19.57]
[1746192946028,6.59813,1834.0,1833.9,19.57]
[1746192946227,6.59813,1834.0,1833.9,18.47735]
[1746192946424,8.7158,1834.0,1833.4,3.2078]
[1746192946629,1.09034,1833.7,1833.4,25.46824]
[1746192947220,1.09034,1833.7,1833.4,29.16424]
[1746192947430,8.23333,1834.0,1833.6,3.2078]
[1746192947632,1.0903,1833.7,1833.6,19.88]
[1746192948635,10.95879,1834.0,1833.6,21.6184]
[1746192948636,1.09029,1833.8,1833.6,21.6184]
[1746192948838,1.09029,1833.8,1833.7,1.7384]
[1746192949029,1.09029,1833.8,1833.7,18.8384]
[1746192950137,1.09029,1833.8,1833.7,22.5344]
[1746192951231,1.09029,1833.8,1833.7,18.8384]
[1746192951932,4.29809,1833.8,1833.7,17.1]
[1746192952336,1.09029,1833.8,1833.7,17.1]
[1746192952935,1.09029,1833.8,1833.7,18.854]
[1746192953134,1.09029,1833.8,1833.7,22.55]
[1746192953440,1.09029,1833.8,1833.7,20.796]
[1746192954136,1.09029,1833.8,1833.7,17.1]
[1746192954737,4.29809,1833.8,1833.7,17.1]
[1746192955740,1.09029,1833.8,1833.7,17.1]
[1746192956238,4.29809,1833.8,1833.7,17.1]
[1746192956437,1.09029,1833.8,1833.7,17.1]
[1746192957540,1.09048,1833.4,1833.3,13.45423763]
[1746192957843,1.09047,1833.5,1833.3,34.08423763]
[1746192958041,1.09042,1833.5,1833.4,1.6766]
[1746192958341,1.09048,1833.4,1833.3,17.15023763]
[1746192958549,1.09048,1833.4,1833.3,37.42023763]
[1746192959042,2.80768,1833.4,1833.3,37.42023763]
[1746192959242,2.80768,1833.4,1833.3,39.09683763]
[1746192959941,2.80768,1833.4,1833.3,42.30463763]
[1746192959942,1.09048,1833.4,1833.3,42.30463763]
[1746192960142,1.09047,1833.5,1833.3,40.18736763]
[1746192960347,4.8544,1833.6,1833.4,1.09048]
[1746192960644,4.8544,1833.6,1833.5,1.6309]
[1746192960842,4.8544,1833.6,1833.5,22.9309]
[1746192961144,5.838,1833.8,1833.6,1.09035]
[1746192961344,1.09028,1833.8,1833.7,1.6309]
[1746192961544,1.09028,1833.8,1833.7,8.5809]
[1746192961740,3.812,1833.9,1833.7,16.7887]
[1746192961940,1.09014,1834.0,1833.8,1.09024]
[1746192962141,1.09014,1834.0,1833.9,2.588]
[1746192962335,3.812,1834.2,1833.9,13.5058]
[1746192962542,1.08986,1834.5,1834.3,1.08993]
[1746192962748,1.08986,1834.5,1834.4,1.6309]
[1746192962945,1.08986,1834.5,1834.4,6.0509]
[1746192963150,1.08986,1834.5,1834.4,9.7469]
[1746192963535,5.4533,1834.7,1834.4,8.116]
[1746192963847,1.08983,1834.5,1834.4,8.116]
[1746192964244,1.08983,1834.5,1834.4,4.42]
[1746192965044,2.78473,1834.5,1834.4,4.42]
[1746192965245,7.78473,1834.5,1834.4,4.42]
[1746192965443,2.78473,1834.5,1834.4,4.42]
[1746192966748,13.62273,1834.5,1834.4,2.20504]
[1746192967046,13.62273,1834.5,1833.7,3.2078]
[1746192967047,1.09022,1833.9,1833.7,3.2078]
[1746192967247,1.09022,1833.9,1833.7,4.8178]
[1746192967644,1.09017,1834.0,1833.7,4.8178]
[1746192967847,1.09024,1833.9,1833.7,4.8178]
[1746192968243,1.09024,1833.8,1833.7,8.5138]
[1746192969048,1.09018,1834.0,1833.7,13.5138]
[1746192969252,1.09013,1834.0,1833.9,3.2078]
[1746192969448,1.09013,1834.0,1833.9,3.47]
[1746192969952,4.29793,1834.0,1833.9,3.47]
[1746192970153,5.92103,1834.0,1833.9,3.47]
[1746192971950,2.71323,1834.0,1833.9,3.47]
[1746192972449,5.92103,1834.0,1833.9,3.47]
[1746192974753,5.92103,1834.0,1833.9,1.88594]
[1746192975050,1.09019,1833.9,1833.8,0.00543127]
[1746192975240,3.60319,1833.9,1833.8,1.27e-06]
[1746192975842,14.44119,1833.9,1833.8,1.27e-06]
[1746192976255,18.13719,1833.9,1833.8,1.27e-06]
[1746192977551,18.13719,1833.9,1833.8,0.60000127]
[1746192977552,17.29719,1833.9,1833.8,0.60000127]
[1746192977751,12.29719,1833.9,1833.8,0.60000127]
[1746192978156,8.60119,1833.9,1833.8,0.60000127]
[1746192978351,13.60119,1833.9,1833.8,1.27e-06]
[1746192978547,13.60119,1833.9,1833.0,3.2078]
[1746192978548,1.09065,1833.2,1833.0,3.2078]
[1746192978752,1.09065,1833.2,1833.1,1.752]
[1746192978952,1.09065,1833.2,1833.1,22.042]
[1746192980049,3.812,1833.5,1833.1,27.042]
[1746192980247,3.2078,1833.9,1833.4,3.2078]
[1746192980447,1.09036,1833.6,1833.5,1.752]
[1746192980642,1.09036,1833.6,1833.5,13.862]
[1746192980847,4.90236,1833.6,1833.5,12.11]
[1746192981255,6.64046,1833.6,1833.5,12.11]
[1746192983155,10.33646,1833.6,1833.5,12.11]
[1746192983359,10.33646,1833.6,1833.5,10.99716]
[1746192983551,20.54129408,1833.6,1832.8,3.2078]
[1746192983856,1.09078,1832.9,1832.8,20.6378]
[1746192984357,1.09078,1832.9,1832.8,24.3338]
[1746192984655,1.09078,1832.9,1832.8,21.126]
[1746192984851,2.76968,1832.9,1832.8,21.126]
[1746192985262,2.76968,1832.9,1832.8,17.43]
[1746192985551,4.90277,1833.0,1832.8,17.43]
[1746192986252,4.90277,1833.0,1832.8,21.126]
[1746192986651,1.09078,1832.9,1832.8,21.126]
[1746192987249,4.29858,1832.9,1832.8,21.126]
[1746192987556,5.97808,1832.9,1832.8,21.126]
[1746192988155,5.97808,1832.9,1832.8,17.43]
[1746192989458,6.99938,1832.9,1832.8,17.43]
[1746192990555,4.29858,1832.9,1832.8,17.43]
[1746192990954,5.96448,1832.9,1832.8,17.43]
[1746192992655,4.29858,1832.9,1832.8,17.43]
[1746192993658,1.09078,1832.9,1832.8,17.43]
[1746192994161,1.0909,1832.7,1832.6,4.2277]
[1746192994363,1.0909,1832.7,1832.6,24.7077]
[1746192995057,1.0909,1832.7,1832.6,21.4999]
[1746192997463,1.09089,1832.8,1832.6,21.4999]
[1746192997666,3.2078,1832.9,1832.6,21.4999]
[1746192997667,1.0909,1832.7,1832.6,21.4999]
[1746192998656,1.0909,1832.7,1832.6,23.1986]
[1746193002868,13.1537,1832.7,1832.6,20.48]
[1746193003073,14.171,1832.7,1832.6,19.27734]
[1746193003362,17.867,1832.7,1832.6,16.88044]
[1746193003566,1.0912,1832.2,1832.1,4.8455]
[1746193003768,1.0912,1832.2,1832.1,23.9055]
[1746193003769,4.9462,1832.2,1832.1,23.9055]
[1746193004169,4.9462,1832.2,1832.1,20.6977]
[1746193004867,3.855,1832.2,1832.1,20.6977]
[1746193005171,4.9462,1832.2,1832.1,20.6977]
[1746193005469,3.855,1832.2,1832.1,20.6977]
[1746193006170,4.9462,1832.2,1832.1,20.6977]
[1746193009867,4.9462,1832.2,1832.1,19.06]
[1746193010064,3.855,1832.2,1831.9,2.6117]
[1746193010370,1.09132,1832.0,1831.9,2.6117]
[1746193010559,1.09149,1831.7,1831.6,3.2078]
[1746193010764,1.09155,1831.6,1831.5,7.0176]
[1746193011265,1.09155,1831.6,1831.0,2.72966]
[1746193011266,1.09161,1831.5,1831.0,5.932]
[1746193011467,1.09173,1831.3,1831.2,3.2078]
[1746193011870,7.0638,1831.5,1831.2,3.2078]